[Event "46th OKU-A 2019"]
[Site "Utrecht"]
[Date "2019.06.01"]
[Round "3.1"]
[White "Lalic, Bogdan"]
[Black "Ten Hertog, Hugo"]
[Result "1/2-1/2"]
[ECO "A42"]
[WhiteElo "2400"]
[BlackElo "2480"]
[Annotator "ChessBase"]
[PlyCount "29"]
[EventDate "2019.05.31"]
[EventType "swiss"]
[EventCountry "NED"]
[SourceTitle "playchess.com"]
[Source "ChessBase"]
[SourceQuality "1"]
[TimeControl "6600+10"]

1. d4 {[%emt 0:00:00]} g6 {[%emt 0:00:00]} 2. c4 {[%emt 0:00:00]} Bg7 {[%emt 0:00:00]} 3. e4 {[%emt 0:00:06]} d6 {[%emt 0:00:37]} 4. Nc3 {[%emt 0:00:10]} e5 {[%emt 0:02:10]} 5. Nf3 {[%emt 0:00:15]} Nc6 {[%emt 0:00:35]} 6. Bg5 {[%emt 0:00:19]} f6 {[%emt 0:00:04]} 7. Be3 {[%emt 0:00:07]} Nh6 {[%emt 0:00:04]} 8. dxe5 {[%emt 0:00:28]} dxe5 {[%emt 0:00:44]} 9. Qxd8+ {[%emt 0:00:09]} Kxd8 {[%emt 0:00:20]} 10. Rd1+ {[%emt 0:00:24]} Bd7 {[%emt 0:00:45]} 11. Nd5 {[%emt 0:01:08]} Nf7 {[%emt 0:12:23]} 12. c5 {[%emt 0:00:18]} Kc8 {[%emt 0:01:29]} 13. b4 {[%emt 0:01:03]} Re8 {[%emt 0:07:57]} 14. Bc4 {[%emt 0:05:26]} Ncd8 {[%emt 0:15:50]} 15. Nd2 {[%emt 0:02:09]} 1/2-1/2

[Event "46th OKU-A 2019"]
[Site "Utrecht"]
[Date "2019.06.01"]
[Round "3.2"]
[White "Van Overdam, Julian"]
[Black "Arnaudov, G. Petar"]
[Result "1/2-1/2"]
[ECO "B10"]
[WhiteElo "2371"]
[BlackElo "2482"]
[Annotator "ChessBase"]
[PlyCount "30"]
[EventDate "2019.05.31"]
[EventType "swiss"]
[EventCountry "NED"]
[SourceTitle "playchess.com"]
[Source "ChessBase"]
[SourceQuality "1"]
[TimeControl "6600+10"]

1. e4 {[%emt 0:00:00]} c6 {[%emt 0:00:02]} 2. Ne2 {[%emt 0:00:36]} e5 {[%emt 0:01:50]} 3. d4 {[%emt 0:01:30]} d6 {[%emt 0:00:05]} 4. Nbc3 {[%emt 0:04:07]} Be7 {[%emt 0:01:24]} 5. Ng3 {[%emt 0:01:29]} Nf6 {[%emt 0:01:52]} 6. Be2 {[%emt 0:04:14]} O-O {[%emt 0:03:42]} 7. O-O {[%emt 0:01:22]} exd4 {[%emt 0:02:25]} 8. Qxd4 {[%emt 0:00:08]} Re8 {[%emt 0:00:17]} 9. Bf4 {[%emt 0:04:33]} Be6 {[%emt 0:02:00]} 10. Rad1 {[%emt 0:02:23]} d5 {[%emt 0:00:19]} 11. exd5 {[%emt 0:07:45]} cxd5 {[%emt 0:00:11]} 12. Bf3 {[%emt 0:02:31]} Nc6 {[%emt 0:00:14]} 13. Qd2 {[%emt 0:01:56]} Qb6 {[%emt 0:02:15]} 14. Nxd5 {[%emt 0:08:06]} Nxd5 {[%emt 0:06:29]} 15. Bxd5 {[%emt 0:00:02]} Rad8 1/2-1/2

[Event "46th OKU-A 2019"]
[Site "Utrecht"]
[Date "2019.06.01"]
[Round "3.3"]
[White "Warmerdam, Max"]
[Black "Ootes, Lars"]
[Result "1-0"]
[ECO "B07"]
[WhiteElo "2476"]
[BlackElo "2360"]
[Annotator "ChessBase"]
[PlyCount "71"]
[EventDate "2019.05.31"]
[EventType "swiss"]
[EventCountry "NED"]
[SourceTitle "playchess.com"]
[Source "ChessBase"]
[SourceQuality "1"]
[TimeControl "6600+10"]

1. e4 {[%emt 0:00:00]} d6 {[%emt 0:00:00]} 2. d4 {[%emt 0:00:00]} Nf6 {[%emt 0:00:11]} 3. Bd3 {[%emt 0:00:16]} g6 {[%emt 0:00:48]} 4. Nf3 {[%emt 0:00:12]} Bg7 {[%emt 0:00:09]} 5. c3 {[%emt 0:00:35]} O-O {[%emt 0:00:08]} 6. O-O {[%emt 0:00:08]} e6 {[%emt 0:15:32]} 7. Re1 {[%emt 0:03:24]} Nc6 {[%emt 0:00:18]} 8. h3 {[%emt 0:00:55]} h6 {[%emt 0:02:10]} 9. Na3 {[%emt 0:10:13]} Nd7 {[%emt 0:06:18]} 10. b4 {[%emt 0:11:52]} e5 {[%emt 0:07:02]} 11. Nc2 {[%emt 0:07:54]} Ne7 {[%emt 0:23:23]} 12. a4 {[%emt 0:12:33]} Qe8 {[%emt 0:14:29]} 13. dxe5 {[%emt 0:04:12]} dxe5 {[%emt 0:01:06]} 14. Ba3 {[%emt 0:00:33]} a5 {[%emt 0:21:23]} 15. bxa5 {[%emt 0:03:11]} Rxa5 {[%emt 0:01:26]} 16. Ne3 {[%emt 0:00:21]} c5 {[%emt 0:03:54]} 17. Bb5 {[%emt 0:00:58]} Nc6 {[%emt 0:02:28]} 18. Nc4 {[%emt 0:01:42]} Ra7 {[%emt 0:00:25]} 19. Qd6 {[%emt 0:02:03]} Bf6 {[%emt 0:00:31]} 20. Rad1 {[%emt 0:00:17]} Be7 {[%emt 0:01:08]} 21. Qd2 {[%emt 0:00:18]} Kg7 {[%emt 0:02:03]} 22. Nfxe5 {[%emt 0:02:21]} Ndxe5 {[%emt 0:00:02]} 23. Nxe5 {[%emt 0:00:13]} Be6 {[%emt 0:00:37]} 24. Nd7 {[%emt 0:00:28]} Bxd7 {[%emt 0:01:09]} 25. Qxd7 {[%emt 0:00:03]} Qa8 {[%emt 0:00:42]} 26. Rd5 {[%emt 0:04:52]} Rd8 {[%emt 0:00:41]} 27. Qc7 {[%emt 0:02:01]} Rc8 {[%emt 0:00:42]} 28. Qg3 {[%emt 0:00:47]} b6 {[%emt 0:00:17]} 29. Bc1 {[%emt 0:00:51]} Bf8 {[%emt 0:01:23]} 30. Red1 {[%emt 0:02:44]} Re7 {[%emt 0:01:15]} 31. Rd7 {[%emt 0:01:09]} Rce8 {[%emt 0:00:58]} 32. Rc7 {[%emt 0:01:17]} Re6 {[%emt 0:01:14]} 33. Qf4 {[%emt 0:00:14]} R8e7 {[%emt 0:00:48]} 34. Rxe7 {[%emt 0:02:43]} Nxe7 {[%emt 0:00:05]} 35. Bc4 {[%emt 0:00:32]} Qxe4 {[%emt 0:00:54]} 36. Bxe6 {[%emt 0:00:10]} 1-0

[Event "46th OKU-A 2019"]
[Site "Utrecht"]
[Date "2019.06.01"]
[Round "3.4"]
[White "Okkes, Menno"]
[Black "Meng, Roger"]
[Result "0-1"]
[ECO "D02"]
[WhiteElo "2320"]
[BlackElo "2443"]
[Annotator "ChessBase"]
[PlyCount "72"]
[EventDate "2019.05.31"]
[EventType "swiss"]
[EventCountry "NED"]
[SourceTitle "playchess.com"]
[Source "ChessBase"]
[SourceQuality "1"]
[TimeControl "6600+10"]

1. Nf3 {[%emt 0:00:00]} d5 {[%emt 0:00:00]} 2. g3 {[%emt 0:00:10]} g6 {[%emt 0:00:03]} 3. Bg2 {[%emt 0:00:10]} Bg7 {[%emt 0:00:03]} 4. d4 {[%emt 0:00:13]} Nd7 {[%emt 0:00:03]} 5. O-O {[%emt 0:00:40]} Ngf6 {[%emt 0:00:05]} 6. c4 {[%emt 0:00:54]} dxc4 {[%emt 0:02:11]} 7. Na3 {[%emt 0:04:59]} Nb6 {[%emt 0:01:52]} 8. Nxc4 {[%emt 0:00:56]} O-O {[%emt 0:01:13]} 9. Nce5 {[%emt 0:02:06]} c6 {[%emt 0:00:31]} 10. b3 {[%emt 0:03:42]} a5 {[%emt 0:02:07]} 11. Bb2 {[%emt 0:07:17]} a4 {[%emt 0:02:05]} 12. e3 {[%emt 0:01:36]} Bf5 {[%emt 0:02:02]} 13. Qe2 {[%emt 0:02:29]} Be4 {[%emt 0:11:49]} 14. Rfc1 {[%emt 0:01:35]} Nfd5 {[%emt 0:10:19]} 15. Ba3 {[%emt 0:04:18]} Qc7 {[%emt 0:10:40]} 16. b4 {[%emt 0:03:14]} Bxe5 {[%emt 0:07:14]} 17. Nxe5 {[%emt 0:00:48]} Bxg2 {[%emt 0:00:08]} 18. Kxg2 {[%emt 0:00:07]} Qd6 {[%emt 0:12:07]} 19. Qd3 {[%emt 0:20:32]} Nd7 {[%emt 0:19:38]} 20. Nc4 {[%emt 0:07:53]} Qe6 {[%emt 0:00:47]} 21. Na5 {[%emt 0:08:25]} Rab8 {[%emt 0:00:58]} 22. b5 {[%emt 0:02:16]} cxb5 {[%emt 0:03:52]} 23. Qxb5 {[%emt 0:00:30]} Qe4+ {[%emt 0:01:04]} 24. Kg1 {[%emt 0:12:42]} Nxe3 {[%emt 0:00:06]} 25. fxe3 {[%emt 0:00:05]} Qxe3+ {[%emt 0:00:03]} 26. Kf1 {[%emt 0:04:39]} Qxa3 {[%emt 0:03:50]} 27. Qxd7 {[%emt 0:00:52]} Qd3+ {[%emt 0:00:17]} 28. Kg1 {[%emt 0:01:18]} Qe3+ {[%emt 0:02:42]} 29. Kh1 {[%emt 0:05:02]} Rfd8 {[%emt 0:00:05]} 30. Qh3 {[%emt 0:01:27]} Rxd4 {[%emt 0:01:30]} 31. Qg2 {[%emt 0:02:06]} Qg5 {[%emt 0:02:34]} 32. Nxb7 {[%emt 0:02:04]} Rd2 {[%emt 0:00:04]} 33. Qf3 {[%emt 0:00:48]} Rb2 {[%emt 0:01:37]} 34. Nc5 {[%emt 0:05:06]} Qd2 {[%emt 0:00:19]} 35. Kg1 {[%emt 0:00:07]} Rxa2 {[%emt 0:02:46]} 36. Ne4 {[%emt 0:00:49]} Qd4+ {[%emt 0:00:22]} 0-1

[Event "46th OKU-A 2019"]
[Site "Utrecht"]
[Date "2019.06.01"]
[Round "3.5"]
[White "Burg, Twan"]
[Black "De Jong, Tom"]
[Result "1-0"]
[ECO "E63"]
[WhiteElo "2519"]
[BlackElo "2143"]
[Annotator "ChessBase"]
[PlyCount "65"]
[EventDate "2019.05.31"]
[EventType "swiss"]
[EventCountry "NED"]
[SourceTitle "playchess.com"]
[Source "ChessBase"]
[SourceQuality "1"]
[TimeControl "6600+10"]

1. d4 {[%emt 0:00:00]} Nf6 {[%emt 0:00:00]} 2. c4 {[%emt 0:00:00]} g6 {[%emt 0:00:03]} 3. g3 {[%emt 0:00:15]} Bg7 {[%emt 0:00:09]} 4. Bg2 {[%emt 0:00:04]} O-O {[%emt 0:00:06]} 5. Nc3 {[%emt 0:00:03]} d6 {[%emt 0:00:07]} 6. Nf3 {[%emt 0:00:06]} Nc6 {[%emt 0:00:07]} 7. O-O {[%emt 0:00:05]} a6 {[%emt 0:00:03]} 8. Bf4 {[%emt 0:00:05]} h6 {[%emt 0:05:22]} 9. d5 {[%emt 0:07:20]} Na5 {[%emt 0:04:07]} 10. Qd3 {[%emt 0:02:23]} c5 {[%emt 0:03:28]} 11. dxc6 {[%emt 0:00:35]} Nxc6 {[%emt 0:00:38]} 12. Rac1 {[%emt 0:09:00]} Re8 {[%emt 0:07:29]} 13. e4 {[%emt 0:01:53]} Bg4 {[%emt 0:06:49]} 14. h3 {[%emt 0:01:22]} Bxf3 {[%emt 0:01:12]} 15. Qxf3 {[%emt 0:00:05]} e5 {[%emt 0:03:11]} 16. Be3 {[%emt 0:00:19]} Nd4 {[%emt 0:01:36]} 17. Qd1 {[%emt 0:00:08]} b5 {[%emt 0:13:02]} 18. cxb5 {[%emt 0:00:54]} axb5 {[%emt 0:02:24]} 19. a3 {[%emt 0:00:18]} Rb8 {[%emt 0:07:55]} 20. Ne2 {[%emt 0:00:52]} Nxe2+ {[%emt 0:02:08]} 21. Qxe2 {[%emt 0:00:01]} b4 {[%emt 0:01:04]} 22. a4 {[%emt 0:00:33]} Qa5 {[%emt 0:02:52]} 23. b3 {[%emt 0:00:21]} Rec8 {[%emt 0:01:34]} 24. Qd2 {[%emt 0:01:01]} Rc3 {[%emt 0:04:24]} 25. Qxd6 {[%emt 0:00:32]} Rd8 {[%emt 0:03:27]} 26. Qb6 {[%emt 0:00:17]} Qxb6 27. Bxb6 {[%emt 0:00:02]} Rdd3 {[%emt 0:14:06]} 28. a5 {[%emt 0:00:22]} Rxb3 {[%emt 0:00:35]} 29. a6 {[%emt 0:00:32]} Rdc3 {[%emt 0:05:00]} 30. a7 {[%emt 0:01:26]} Ra3 {[%emt 0:00:30]} 31. Rxc3 {[%emt 0:00:03]} bxc3 {[%emt 0:00:18]} 32. Rc1 {[%emt 0:00:01]} Nd7 {[%emt 0:00:42]} 33. Be3 {[%emt 0:00:03]} 1-0

[Event "46th OKU-A 2019"]
[Site "Utrecht"]
[Date "2019.06.01"]
[Round "3.6"]
[White "Beerdsen, Thomas"]
[Black "Floor, Dirk"]
[Result "1/2-1/2"]
[ECO "C01"]
[WhiteElo "2488"]
[BlackElo "2184"]
[Annotator "ChessBase"]
[PlyCount "57"]
[EventDate "2019.05.31"]
[EventType "swiss"]
[EventCountry "NED"]
[SourceTitle "playchess.com"]
[Source "ChessBase"]
[SourceQuality "1"]
[TimeControl "6600+10"]

1. e4 {[%emt 0:00:27]} e6 {[%emt 0:00:00]} 2. d4 {[%emt 0:00:08]} d5 {[%emt 0:00:12]} 3. Bd3 {[%emt 0:00:08]} dxe4 {[%emt 0:00:12]} 4. Bxe4 {[%emt 0:00:05]} Nf6 {[%emt 0:00:11]} 5. Bf3 {[%emt 0:00:04]} c5 {[%emt 0:00:14]} 6. Ne2 {[%emt 0:00:08]} Be7 {[%emt 0:00:34]} 7. Be3 {[%emt 0:03:05]} O-O {[%emt 0:00:34]} 8. Nbc3 {[%emt 0:04:36]} Qa5 {[%emt 0:03:11]} 9. O-O {[%emt 0:01:14]} Nc6 {[%emt 0:03:24]} 10. Qe1 {[%emt 0:09:28]} cxd4 {[%emt 0:04:02]} 11. Nxd4 {[%emt 0:05:20]} Ne5 {[%emt 0:03:55]} 12. Qe2 {[%emt 0:00:29]} Nxf3+ {[%emt 0:03:19]} 13. Qxf3 {[%emt 0:00:58]} Bb4 {[%emt 0:13:18]} 14. Nde2 {[%emt 0:09:12]} Qf5 {[%emt 0:11:10]} 15. Qxf5 {[%emt 0:00:53]} exf5 {[%emt 0:00:45]} 16. Nb5 {[%emt 0:02:05]} b6 {[%emt 0:05:30]} 17. c3 {[%emt 0:02:51]} Be7 {[%emt 0:02:12]} 18. a4 {[%emt 0:00:58]} Nd5 {[%emt 0:01:41]} 19. Bd4 {[%emt 0:06:54]} Bd7 {[%emt 0:03:33]} 20. Rfd1 {[%emt 0:07:53]} a6 {[%emt 0:05:39]} 21. Nc7 {[%emt 0:02:58]} Nxc7 {[%emt 0:01:00]} 22. Bxb6 {[%emt 0:00:34]} Rfb8 {[%emt 0:14:43]} 23. Rxd7 {[%emt 0:08:48]} Rxb6 {[%emt 0:00:11]} 24. Rxe7 {[%emt 0:00:33]} Rxb2 {[%emt 0:02:54]} 25. Nf4 {[%emt 0:00:34]} Ne8 {[%emt 0:03:11]} 26. Rae1 {[%emt 0:07:48]} Kf8 {[%emt 0:03:49]} 27. Nd5 {[%emt 0:02:34]} Rd8 {[%emt 0:00:33]} 28. Nb4 {[%emt 0:09:59]} Nf6 {[%emt 0:01:47]} 29. Ra7 {[%emt 0:05:34]} 1/2-1/2

[Event "46th OKU-A 2019"]
[Site "Utrecht"]
[Date "2019.06.01"]
[Round "3.7"]
[White "Miezis, Normunds"]
[Black "Boogaard, Sander"]
[Result "1-0"]
[ECO "A36"]
[WhiteElo "2456"]
[BlackElo "2095"]
[Annotator "ChessBase"]
[PlyCount "74"]
[EventDate "2019.05.31"]
[EventType "swiss"]
[EventCountry "NED"]
[SourceTitle "playchess.com"]
[Source "ChessBase"]
[SourceQuality "1"]
[TimeControl "6600+10"]

1. c4 {[%emt 0:00:00]} Nf6 {[%emt 0:00:00]} 2. Nc3 {[%emt 0:00:04]} g6 {[%emt 0:00:01]} 3. g3 {[%emt 0:00:08]} Bg7 {[%emt 0:00:06]} 4. Bg2 {[%emt 0:00:10]} O-O {[%emt 0:00:07]} 5. e4 {[%emt 0:00:07]} c5 {[%emt 0:01:07]} 6. Nge2 {[%emt 0:00:12]} Nc6 {[%emt 0:00:28]} 7. O-O {[%emt 0:00:12]} Ne8 {[%emt 0:00:22]} 8. a3 {[%emt 0:01:05]} Nc7 {[%emt 0:01:05]} 9. Rb1 {[%emt 0:00:27]} Ne6 {[%emt 0:00:47]} 10. b4 {[%emt 0:00:08]} d6 {[%emt 0:00:41]} 11. d3 {[%emt 0:00:16]} Ned4 {[%emt 0:03:35]} 12. h3 {[%emt 0:01:09]} a6 {[%emt 0:15:45]} 13. Kh2 {[%emt 0:03:02]} Rb8 {[%emt 0:06:26]} 14. bxc5 {[%emt 0:01:14]} dxc5 {[%emt 0:00:09]} 15. Nxd4 {[%emt 0:01:27]} Nxd4 {[%emt 0:02:25]} 16. Na4 {[%emt 0:00:42]} b5 {[%emt 0:07:02]} 17. cxb5 {[%emt 0:03:01]} Qd6 {[%emt 0:12:06]} 18. b6 {[%emt 0:07:57]} Bd7 {[%emt 0:00:08]} 19. b7 {[%emt 0:01:01]} Bb5 {[%emt 0:00:18]} 20. f4 {[%emt 0:03:19]} e5 {[%emt 0:04:01]} 21. Nb2 {[%emt 0:33:17]} a5 {[%emt 0:02:17]} 22. fxe5 {[%emt 0:00:04]} Bxe5 {[%emt 0:00:30]} 23. Bf4 {[%emt 0:12:56]} Rfe8 {[%emt 0:03:24]} 24. Qd2 {[%emt 0:05:25]} Re7 {[%emt 0:43:41]} 25. Qxa5 {[%emt 0:00:00]} Rexb7 {[%emt 0:05:33]} 26. Rbd1 {[%emt 0:00:00]} Ba6 27. Na4 {[%emt 0:00:00]} Bb5 28. Nc3 {[%emt 0:03:13]} Nc6 {[%emt 0:00:51]} 29. Nxb5 {[%emt 0:00:00]} Rxb5 {[%emt 0:01:02]} 30. Qa6 {[%emt 0:00:00]} Qe6 31. Rf2 {[%emt 0:08:21]} R8b6 {[%emt 0:00:44]} 32. Qa4 {[%emt 0:00:23]} Rb2 {[%emt 0:04:53]} 33. Rdf1 {[%emt 0:00:00]} Qa2 {[%emt 0:04:35]} 34. Bxe5 {[%emt 0:00:00]} Rxf2 {[%emt 0:00:21]} 35. Rxf2 {[%emt 0:00:00]} Qxf2 {[%emt 0:00:13]} 36. Qa8+ {[%emt 0:00:00]} Nb8 37. Bxb8 {[%emt 0:00:35]} Kg7 {[%emt 0:00:21]} 1-0

[Event "46th OKU-A 2019"]
[Site "Utrecht"]
[Date "2019.06.01"]
[Round "3.8"]
[White "Van Kerkhof, David"]
[Black "Mijnster, Niels"]
[Result "1-0"]
[ECO "B15"]
[WhiteElo "2376"]
[BlackElo "2064"]
[Annotator "ChessBase"]
[PlyCount "66"]
[EventDate "2019.05.31"]
[EventType "swiss"]
[EventCountry "NED"]
[SourceTitle "playchess.com"]
[Source "ChessBase"]
[SourceQuality "1"]
[TimeControl "6600+10"]

1. e4 {[%emt 0:01:48]} c6 {[%emt 0:00:00]} 2. d4 {[%emt 0:00:27]} d5 {[%emt 0:00:01]} 3. f3 {[%emt 0:00:06]} g6 {[%emt 0:07:50]} 4. Nc3 {[%emt 0:01:09]} Bg7 {[%emt 0:01:01]} 5. Be3 {[%emt 0:00:36]} Qb6 {[%emt 0:10:03]} 6. Rb1 {[%emt 0:00:19]} e5 {[%emt 0:03:46]} 7. Nge2 {[%emt 0:04:16]} Be6 {[%emt 0:18:23]} 8. Qd2 {[%emt 0:02:37]} Qd8 {[%emt 0:09:23]} 9. dxe5 {[%emt 0:06:39]} Bxe5 {[%emt 0:02:54]} 10. exd5 {[%emt 0:00:24]} cxd5 {[%emt 0:01:30]} 11. Nd4 {[%emt 0:00:52]} Ne7 {[%emt 0:06:19]} 12. Bb5+ {[%emt 0:10:32]} Nbc6 {[%emt 0:10:40]} 13. O-O {[%emt 0:01:54]} O-O {[%emt 0:01:44]} 14. Rfe1 {[%emt 0:11:26]} Nxd4 {[%emt 0:09:43]} 15. Bxd4 {[%emt 0:00:56]} Bxd4+ {[%emt 0:04:40]} 16. Qxd4 {[%emt 0:00:02]} Nf5 {[%emt 0:00:40]} 17. Qe5 {[%emt 0:02:25]} Qb6+ {[%emt 0:01:58]} 18. Kh1 {[%emt 0:00:37]} Rac8 {[%emt 0:01:47]} 19. Bd3 {[%emt 0:05:11]} Nd4 {[%emt 0:01:12]} 20. a3 {[%emt 0:06:03]} Nc6 {[%emt 0:02:04]} 21. Qf6 {[%emt 0:04:03]} Qd4 {[%emt 0:05:13]} 22. Qg5 {[%emt 0:07:53]} Kg7 {[%emt 0:01:17]} 23. Ne2 {[%emt 0:00:41]} Qf6 {[%emt 0:00:51]} 24. Qg3 {[%emt 0:14:26]} Rfe8 {[%emt 0:00:03]} 25. Nf4 {[%emt 0:01:03]} Kh8 {[%emt 0:00:02]} 26. h4 {[%emt 0:02:20]} h5 {[%emt 0:02:31]} 27. Re3 {[%emt 0:06:21]} d4 {[%emt 0:02:02]} 28. Re2 {[%emt 0:01:07]} Ne7 {[%emt 0:02:40]} 29. Rbe1 {[%emt 0:02:00]} Rc6 {[%emt 0:01:27]} 30. Re5 {[%emt 0:01:08]} Nf5 {[%emt 0:01:47]} 31. Bxf5 {[%emt 0:02:01]} gxf5 {[%emt 0:00:02]} 32. Nxh5 {[%emt 0:00:09]} Qh6 {[%emt 0:00:16]} 33. Rxf5 {[%emt 0:00:01]} Qd2 {[%emt 0:01:17]} 1-0

[Event "46th OKU-A 2019"]
[Site "Utrecht"]
[Date "2019.06.01"]
[Round "3.9"]
[White "Cornelisse, John"]
[Black "Diepeveen, Vincent"]
[Result "0-1"]
[ECO "D19"]
[WhiteElo "2204"]
[BlackElo "2312"]
[Annotator "ChessBase"]
[PlyCount "62"]
[EventDate "2019.05.31"]
[EventType "swiss"]
[EventCountry "NED"]
[SourceTitle "playchess.com"]
[Source "ChessBase"]
[SourceQuality "1"]
[TimeControl "6600+10"]

1. d4 {[%emt 0:00:00]} d5 {[%emt 0:00:00]} 2. c4 {[%emt 0:00:02]} c6 {[%emt 0:00:00]} 3. Nc3 {[%emt 0:00:14]} Nf6 {[%emt 0:00:03]} 4. Nf3 {[%emt 0:00:17]} dxc4 {[%emt 0:00:06]} 5. a4 {[%emt 0:00:16]} Bf5 {[%emt 0:00:17]} 6. e3 {[%emt 0:00:23]} e6 {[%emt 0:00:17]} 7. Bxc4 {[%emt 0:00:11]} Bb4 {[%emt 0:00:05]} 8. O-O {[%emt 0:00:23]} O-O {[%emt 0:00:06]} 9. Qe2 {[%emt 0:00:31]} Nbd7 {[%emt 0:03:01]} 10. e4 {[%emt 0:01:55]} Bg6 {[%emt 0:00:14]} 11. Bd3 {[%emt 0:00:36]} Bh5 {[%emt 0:01:17]} 12. e5 {[%emt 0:00:55]} Nd5 {[%emt 0:00:04]} 13. Nxd5 {[%emt 0:02:57]} cxd5 {[%emt 0:00:08]} 14. Qe3 {[%emt 0:00:20]} h6 {[%emt 0:03:47]} 15. Ne1 {[%emt 0:24:35]} Bxe1 {[%emt 0:11:57]} 16. Rxe1 {[%emt 0:01:12]} Bg6 {[%emt 0:00:25]} 17. Bb5 {[%emt 0:08:12]} Rc8 {[%emt 0:01:56]} 18. Bd2 {[%emt 0:01:56]} Qe7 {[%emt 0:08:28]} 19. Rec1 {[%emt 0:05:18]} Nb8 {[%emt 0:08:04]} 20. Qb3 {[%emt 0:05:31]} a6 {[%emt 0:00:19]} 21. Bb4 {[%emt 0:00:56]} Qg5 {[%emt 0:00:11]} 22. Rxc8 {[%emt 0:22:07]} Rxc8 {[%emt 0:02:48]} 23. Bf1 {[%emt 0:00:37]} Rc2 {[%emt 0:06:26]} 24. Rd1 {[%emt 0:14:13]} Nc6 {[%emt 0:09:38]} 25. Bc3 {[%emt 0:02:07]} Qf4 {[%emt 0:05:34]} 26. f3 {[%emt 0:04:10]} Qe3+ {[%emt 0:02:48]} 27. Kh1 {[%emt 0:00:08]} Rc1 {[%emt 0:04:44]} 28. Rxc1 {[%emt 0:01:28]} Qxc1 {[%emt 0:00:07]} 29. Kg1 {[%emt 0:00:03]} Bc2 {[%emt 0:04:08]} 30. Qxb7 {[%emt 0:02:11]} Bd3 {[%emt 0:01:10]} 31. Kf2 {[%emt 0:00:08]} Bxf1 {[%emt 0:14:58]} 0-1

[Event "46th OKU-A 2019"]
[Site "Utrecht"]
[Date "2019.06.01"]
[Round "3.10"]
[White "Pham, Khoi"]
[Black "Halfhide, Sebastian"]
[Result "1/2-1/2"]
[ECO "E20"]
[WhiteElo "2198"]
[BlackElo "2252"]
[Annotator "ChessBase"]
[PlyCount "69"]
[EventDate "2019.05.31"]
[EventType "swiss"]
[EventCountry "NED"]
[SourceTitle "playchess.com"]
[Source "ChessBase"]
[SourceQuality "1"]
[TimeControl "6600+10"]

1. d4 {[%emt 0:00:00]} Nf6 {[%emt 0:02:38]} 2. c4 {[%emt 0:00:00]} e6 {[%emt 0:00:02]} 3. Nc3 {[%emt 0:00:05]} Bb4 {[%emt 0:00:07]} 4. f3 {[%emt 0:00:09]} c5 {[%emt 0:02:59]} 5. d5 {[%emt 0:00:27]} b5 {[%emt 0:00:53]} 6. e4 {[%emt 0:00:14]} d6 {[%emt 0:00:32]} 7. Nge2 {[%emt 0:01:49]} bxc4 {[%emt 0:03:28]} 8. Nf4 {[%emt 0:00:43]} e5 {[%emt 0:09:55]} 9. Nfe2 {[%emt 0:03:31]} Nbd7 {[%emt 0:03:36]} 10. Ng3 {[%emt 0:00:27]} Nb6 {[%emt 0:01:05]} 11. Be2 {[%emt 0:01:48]} O-O {[%emt 0:10:58]} 12. O-O {[%emt 0:04:39]} Re8 {[%emt 0:01:31]} 13. Bg5 {[%emt 0:02:55]} h6 {[%emt 0:01:09]} 14. Bd2 {[%emt 0:02:38]} Nfd7 {[%emt 0:08:50]} 15. Nf5 {[%emt 0:03:30]} Nf8 {[%emt 0:00:31]} 16. Ne3 {[%emt 0:03:14]} Ng6 {[%emt 0:02:18]} 17. g3 {[%emt 0:03:03]} Rf8 {[%emt 0:05:19]} 18. f4 {[%emt 0:06:34]} exf4 {[%emt 0:09:24]} 19. gxf4 {[%emt 0:00:19]} f5 {[%emt 0:00:16]} 20. exf5 {[%emt 0:07:18]} Nh4 {[%emt 0:00:39]} 21. Bg4 {[%emt 0:03:03]} Nxf5 {[%emt 0:02:43]} 22. Nxf5 {[%emt 0:00:24]} Bxf5 {[%emt 0:00:16]} 23. Bxf5 {[%emt 0:00:39]} Rxf5 {[%emt 0:00:05]} 24. Qg4 {[%emt 0:02:01]} Qd7 {[%emt 0:14:52]} 25. Kh1 {[%emt 0:06:26]} Raf8 {[%emt 0:03:33]} 26. Rg1 {[%emt 0:03:35]} R8f7 {[%emt 0:02:15]} 27. Rae1 {[%emt 0:02:19]} Bxc3 {[%emt 0:05:48]} 28. Bxc3 {[%emt 0:01:37]} Nxd5 {[%emt 0:02:18]} 29. Bxg7 {[%emt 0:08:41]} Rxg7 {[%emt 0:04:38]} 30. Re8+ {[%emt 0:00:09]} Kh7 {[%emt 0:00:14]} 31. Re7 {[%emt 0:00:11]} Qxe7 {[%emt 0:03:57]} 32. Qxf5+ {[%emt 0:00:05]} Kh8 {[%emt 0:00:10]} 33. Qc8+ {[%emt 0:00:23]} Kh7 {[%emt 0:00:34]} 34. Qf5+ {[%emt 0:00:08]} Kh8 {[%emt 0:00:31]} 35. Qc8+ {[%emt 0:00:08]} 1/2-1/2

[Event "46th OKU-A 2019"]
[Site "Utrecht"]
[Date "2019.06.01"]
[Round "3.11"]
[White "Reichardt, Robin"]
[Black "Van Dael, Siem"]
[Result "1/2-1/2"]
[ECO "E99"]
[WhiteElo "1925"]
[BlackElo "2218"]
[Annotator "ChessBase"]
[PlyCount "54"]
[EventDate "2019.05.31"]
[EventType "swiss"]
[EventCountry "NED"]
[SourceTitle "playchess.com"]
[Source "ChessBase"]
[SourceQuality "1"]
[TimeControl "6600+10"]

1. d4 {[%emt 0:00:00]} Nf6 {[%emt 0:00:00]} 2. c4 {[%emt 0:00:09]} g6 {[%emt 0:00:04]} 3. Nf3 {[%emt 0:00:12]} Bg7 {[%emt 0:00:07]} 4. Nc3 {[%emt 0:00:07]} O-O {[%emt 0:00:08]} 5. e4 {[%emt 0:00:29]} d6 {[%emt 0:00:04]} 6. Be2 {[%emt 0:00:08]} e5 {[%emt 0:00:05]} 7. O-O {[%emt 0:00:08]} Nc6 {[%emt 0:00:03]} 8. d5 {[%emt 0:00:06]} Ne7 {[%emt 0:00:04]} 9. Ne1 {[%emt 0:00:14]} Nd7 {[%emt 0:00:16]} 10. f3 {[%emt 0:00:18]} f5 {[%emt 0:00:06]} 11. Be3 {[%emt 0:00:04]} f4 {[%emt 0:00:05]} 12. Bf2 {[%emt 0:00:05]} g5 {[%emt 0:00:04]} 13. Rc1 {[%emt 0:00:34]} Ng6 {[%emt 0:00:09]} 14. c5 {[%emt 0:00:43]} Nxc5 {[%emt 0:00:28]} 15. b4 {[%emt 0:00:17]} Na6 {[%emt 0:00:05]} 16. Nb5 {[%emt 0:00:33]} h5 {[%emt 0:06:47]} 17. Nxa7 {[%emt 0:04:43]} Bd7 {[%emt 0:05:19]} 18. a4 {[%emt 0:05:31]} g4 {[%emt 0:07:11]} 19. fxg4 {[%emt 0:25:08]} f3 {[%emt 0:06:13]} 20. Bxf3 {[%emt 0:04:47]} hxg4 {[%emt 0:01:53]} 21. Bxg4 {[%emt 0:01:56]} Rxf2 {[%emt 0:04:42]} 22. Rxf2 {[%emt 0:00:44]} Rxa7 {[%emt 0:15:33]} 23. Qf3 {[%emt 0:15:28]} Qe7 {[%emt 0:00:00]} 24. Nd3 {[%emt 0:09:54]} Ra8 {[%emt 0:03:35]} 25. Bxd7 {[%emt 0:07:43]} Qxd7 {[%emt 0:00:07]} 26. Qf5 {[%emt 0:08:38]} Qxf5 {[%emt 0:07:21]} 27. Rxf5 {[%emt 0:01:34]} Bh6 {[%emt 0:07:11]} 1/2-1/2